[Event "Reykjavik Open 2024"]
[Site "Reykjavik"]
[Date "2024.03.18"]
[Round "5.43"]
[White "Bulmaga, Irina"]
[Black "Fossheim, Yngve"]
[Result "0-1"]
[ECO "B36"]
[WhiteElo "2429"]
[BlackElo "2090"]
[Annotator "TA"]
[PlyCount "82"]
[EventDate "2024.03.12"]
[EventCountry "ISL"]
[SourceTitle "playchess.com"]
[Source "ChessBase"]
[SourceQuality "1"]
[TimeControl "40/5400+30:1800+30"]

{[%evp 21,82,30,32,38,32,32,49,46,47,36,69,49,51,37,62,58,61,59,58,50,61,18,35,28,46,43,42,17,23,20,31,-31,-32,-23,-20,-52,0,-211,-216,-206,-196,-195,-134,-253,-243,-307,-260,-305,-311,-886,-904,-939,-937,-1307,-879,-981,-930,-1018,-1018,-1006,-990,-986,-978]} 1. e4 {[%emt 0:00:06]} c5 {[%emt 0:00:15]} 2. Nf3 {[%emt 0:00:08]} Nc6 {[%emt 0:00:16]} 3. d4 {[%emt 0:00:19]} cxd4 {[%emt 0:00:07]} 4. Nxd4 {[%emt 0:00:06]} g6 {[%emt 0:00:07]} 5. c4 {[%emt 0:00:29]} Nf6 {[%emt 0:00:08]} 6. Nc3 {[%emt 0:00:07]} d6 {[%emt 0:00:03]} 7. Be2 {[%emt 0:00:30]} Nxd4 {[%emt 0:00:05]} 8. Qxd4 {[%emt 0:00:09]} Bg7 {[%emt 0:00:03]} 9. Bg5 {[%emt 0:00:43]} O-O {[%emt 0:01:56]} 10. Qe3 {[%emt 0:00:29]} Qa5 {[%emt 0:12:16]} 11. O-O {[%emt 0:01:12]} Be6 {[%emt 0:08:38]} 12. Rfc1 {[%emt 0:05:31]} Rfc8 {[%emt 0:03:50]} 13. b3 {[%emt 0:04:19]} a6 {[%emt 0:08:43][%cal Ob7b5]} 14. a4 {[%emt 0:05:44] White is slightly better.} Re8 {[%emt 0:11:52]} 15. Rab1 {[%emt 0:03:43]} Qc5 {[%emt 0:03:15]} 16. Qd2 {[%emt 0:20:29]} Qb4 {[%emt 0:01:13]} 17. Qe1 {[%emt 0:02:13]} a5 {[%emt 0:07:18]} 18. Bd2 {[%emt 0:03:07]} Qb6 {[%emt 0:03:24]} 19. Be3 {[%emt 0:01:19]} Qd8 {[%emt 0:01:47]} 20. h3 {[%emt 0:03:06]} Nd7 {[%emt 0:01:15]} 21. f4 {[%emt 0:00:29]} b6 {[%emt 0:07:20]} 22. Bf3 {[%emt 0:02:28]} Nc5 {[%emt 0:04:03]} 23. Rd1 {[%emt 0:00:30] Against Nd3} Bd7 {[%emt 0:04:27]} 24. Nd5 {[%emt 0:14:23]} e5 {[%emt 0:03:29] [#]} 25. f5 $1 {[%emt 0:10:34]} gxf5 {[%emt 0:01:55]} 26. Bxc5 {[%emt 0:00:02]} ({Better is} 26. Nc3 $14) 26... bxc5 $15 {[%emt 0:01:08]} 27. Nc3 {[%emt 0:03:16]} Ra6 {[%emt 0:03:29]} 28. Rd3 {[%emt 0:01:55]} fxe4 {[%emt 0:01:31]} (28... f4 $15) 29. Bxe4 $2 {[%emt 0:02:45]} (29. Nxe4 $11 {and White stays safe.} f5 30. Nxd6) 29... f5 $19 {[%emt 0:00:16]} 30. Bd5+ {[%emt 0:00:23]} Kh8 {[%emt 0:00:35]} 31. Rg3 {[%emt 0:03:04]} Qf6 {[%emt 0:01:47]} (31... Bf6 $19 {...Bh4 is the strong threat.} 32. Qd2 e4) 32. Rd1 {[%emt 0:04:31]} (32. Nb5 $17 {might work better.}) 32... e4 {[%emt 0:02:06]} 33. Kh1 {[%emt 0:01:50]} Bh6 {[%emt 0:01:16]} 34. Qf2 {[%emt 0:03:34][%cal Oc3e4]} Qe5 {[%emt 0:00:46] [#] Strongly threatening ...f4.} 35. Re1 $2 {[%emt 0:02:01]} (35. Ne2) 35... e3 {[%emt 0:00:48] Black is clearly winning.} 36. Rgxe3 {[%emt 0:02:24]} Bxe3 {[%emt 0:00:16]} 37. Qc2 {[%emt 0:00:10]} Bc6 {[%emt 0:02:09]} 38. Nd1 {[%emt 0:00:46]} f4 {[%emt 0:00:39]} 39. Nf2 {[%emt 0:00:13]} Bxd5 {[%emt 0:00:22]} 40. cxd5 {[%emt 0:00:03]} Ra7 {[%emt 0:01:30][%cal Oa7g7] Threatens to win with ...Rg7!} 41. Ng4 {[%emt 0:30:03]} Qg7 {[%emt 0:31:13] Weighted Error Value: White=0.65/Black=0.32.  Loses game:     	White=1     	---        Mistake:       	White=3     	Black=2      Inaccurate:     	White=2     	Black=1      OK:         	White=9     	Black=9      Best:        	---       	Black=4} 0-1

[Event "Reykjavik Open 2024"]
[Site "Reykjavik"]
[Date "2024.03.18"]
[Round "5.44"]
[White "Roberts, Tallulah"]
[Black "Bokobza, Pierre"]
[Result "1-0"]
[ECO "C84"]
[WhiteElo "1671"]
[BlackElo "1431"]
[Annotator "NA RC"]
[PlyCount "82"]
[EventDate "2024.03.12"]
[EventCountry "ISL"]
[SourceTitle "playchess.com"]
[Source "ChessBase"]
[SourceQuality "1"]
[TimeControl "40/5400+30:1800+30"]

1. e4 {[%emt 0:00:03]} e5 {[%emt 0:00:52]} 2. Nf3 {[%emt 0:00:05]} Nc6 {[%emt 0:00:09]} 3. Bb5 {[%emt 0:00:09]} a6 {[%emt 0:00:11]} 4. Ba4 {[%emt 0:00:05]} Nf6 {[%emt 0:00:17]} 5. d3 {[%emt 0:00:05]} b5 {[%emt 0:00:35]} 6. Bb3 {[%emt 0:00:05]} Be7 {[%emt 0:00:17]} 7. O-O {[%emt 0:00:51]} O-O {[%emt 0:00:25]} 8. c3 {[%emt 0:00:50]} Na5 {[%emt 0:00:28]} 9. Nxe5 {[%emt 0:00:41]} Nxb3 {[%emt 0:00:26]} 10. axb3 {[%emt 0:00:20]} Bd6 {[%emt 0:02:22]} 11. Nf3 {[%emt 0:02:08]} Re8 {[%emt 0:03:23]} 12. Re1 {[%emt 0:01:21]} Ng4 {[%emt 0:04:29]} 13. h3 {[%emt 0:02:11]} Ne5 {[%emt 0:00:31]} 14. Nxe5 {[%emt 0:05:24]} Bxe5 {[%emt 0:01:50]} 15. d4 {[%emt 0:03:31]} Bf6 {[%emt 0:00:15]} 16. Nd2 {[%emt 0:04:40]} d6 {[%emt 0:10:12]} 17. Qf3 {[%emt 0:12:19]} Bb7 {[%emt 0:00:44]} 18. b4 {[%emt 0:05:08]} d5 {[%emt 0:09:20]} 19. e5 {[%emt 0:01:16]} Bg5 {[%emt 0:00:20]} 20. Nb3 {[%emt 0:01:24]} Bxc1 {[%emt 0:04:26]} 21. Rexc1 {[%emt 0:00:54]} Rf8 {[%emt 0:07:05]} 22. Nc5 {[%emt 0:01:27]} Bc8 {[%emt 0:00:47]} 23. Re1 {[%emt 0:05:05]} Be6 {[%emt 0:02:32]} 24. Nxa6 {[%emt 0:05:14]} Ra7 {[%emt 0:03:47]} 25. Nc5 {[%emt 0:09:27]} Qa8 {[%emt 0:01:13]} 26. Qd1 {[%emt 0:03:06]} Ra2 {[%emt 0:07:28]} 27. Qb1 {[%emt 0:03:06]} Rxa1 {[%emt 0:02:33]} 28. Qxa1 {[%emt 0:00:06]} Qc6 {[%emt 0:00:11]} 29. Qb1 {[%emt 0:07:37]} g6 {[%emt 0:01:24]} 30. g4 {[%emt 0:01:22]} f5 {[%emt 0:05:11]} 31. exf6 {[%emt 0:04:35]} Rxf6 {[%emt 0:00:33]} 32. Qc1 {[%emt 0:02:38]} Qd6 {[%emt 0:05:02]} 33. g5 {[%emt 0:04:04]} Rxf2 {[%emt 0:04:13]} 34. Kxf2 {[%emt 0:00:26]} Qh2+ {[%emt 0:00:11]} 35. Ke3 {[%emt 0:01:22]} Qg3+ {[%emt 0:04:44]} 36. Kd2 {[%emt 0:02:01]} Qf2+ {[%emt 0:03:29]} 37. Kd1 {[%emt 0:04:53]} Qf3+ {[%emt 0:01:25]} 38. Kc2 {[%emt 0:01:13]} Bf5+ {[%emt 0:05:12]} 39. Kb3 {[%emt 0:01:45]} Kf7 {[%emt 0:03:17]} 40. Qe3 {[%emt 0:01:33]} Qxe3 {[%emt 0:01:44]} 41. Rxe3 {[%emt 0:30:07]} Bc8 {[%emt 0:30:59]} 1-0

[Event "Reykjavik Open 2024"]
[Site "Reykjavik"]
[Date "2024.03.18"]
[Round "5.45"]
[White "Kazarian, Anna-Maja"]
[Black "Cansdale, Zach"]
[Result "1-0"]
[ECO "B12"]
[WhiteElo "2206"]
[BlackElo "1951"]
[Annotator "RC"]
[PlyCount "53"]
[EventDate "2024.03.12"]
[EventCountry "ISL"]
[SourceTitle "playchess.com"]
[Source "ChessBase"]
[SourceQuality "1"]
[TimeControl "40/5400+30:1800+30"]

1. e4 {[%emt 0:00:10]} c6 {[%emt 0:00:10]} 2. d4 {[%emt 0:00:17]} d5 {[%emt 0:00:07]} 3. f3 {[%emt 0:00:04]} e6 {[%emt 0:00:35]} 4. Nc3 {[%emt 0:02:16]} Bb4 {[%emt 0:00:17]} 5. Bf4 {[%emt 0:03:36]} Ne7 {[%emt 0:00:26]} 6. Nge2 {[%emt 0:03:21]} Ng6 {[%emt 0:05:21]} 7. Bg3 {[%emt 0:00:56]} b6 {[%emt 0:02:06]} 8. a3 {[%emt 0:00:50]} Be7 {[%emt 0:01:10]} 9. e5 {[%emt 0:05:05]} O-O {[%emt 0:10:51]} 10. Qd2 {[%emt 0:04:51]} Ba6 {[%emt 0:11:07]} 11. Nd1 {[%emt 0:02:16]} c5 {[%emt 0:02:25]} 12. c3 {[%emt 0:10:28]} Nc6 {[%emt 0:03:23]} 13. b4 {[%emt 0:04:04]} cxd4 {[%emt 0:21:04]} 14. cxd4 {[%emt 0:00:39]} Bc4 {[%emt 0:04:59]} 15. h4 {[%emt 0:10:43]} Bxh4 {[%emt 0:05:34]} 16. Bxh4 {[%emt 0:01:09]} Nxh4 {[%emt 0:00:15]} 17. Kf2 {[%emt 0:05:30]} Re8 {[%emt 0:04:50]} 18. Ne3 {[%emt 0:04:18]} Ng6 {[%emt 0:07:04]} 19. Ng4 {[%emt 0:02:21]} Nf8 {[%emt 0:05:08]} 20. Ng3 {[%emt 0:02:31]} Ne7 {[%emt 0:02:19]} 21. Nh5 {[%emt 0:01:46]} Nf5 {[%emt 0:04:48]} 22. Ngf6+ {[%emt 0:03:40]} gxf6 {[%emt 0:01:05]} 23. Nxf6+ {[%emt 0:00:09]} Kh8 {[%emt 0:03:04]} 24. Qg5 {[%emt 0:00:29]} Ng7 {[%emt 0:00:39]} 25. Qh6 {[%emt 0:00:19]} Nf5 {[%emt 0:01:40]} 26. Qxh7+ {[%emt 0:00:06]} Nxh7 {[%emt 0:00:06]} 27. Rxh7# {[%emt 0:00:05]} 1-0

[Event "Reykjavik Open 2024"]
[Site "Reykjavik"]
[Date "2024.03.18"]
[Round "6.1"]
[White "Seemann, Jakub"]
[Black "Moussard, Jules"]
[Result "1/2-1/2"]
[ECO "B51"]
[WhiteElo "2451"]
[BlackElo "2621"]
[Annotator "TA"]
[PlyCount "110"]
[EventDate "2024.03.12"]
[EventCountry "ISL"]
[SourceTitle "playchess.com"]
[Source "ChessBase"]
[SourceQuality "1"]
[TimeControl "40/5400+30:1800+30"]

{[%evp 34,110,25,23,49,31,37,4,8,0,26,32,42,27,90,55,104,112,128,60,51,0,139,134,164,51,42,42,99,43,93,65,57,70,72,33,30,40,43,45,30,37,72,74,49,2,8,12,36,0,0,0,3,0,0,0,0,0,0,0,0,-1,0,0,0,0,0,0,0,0,0,0,0,0,0,0,0,0,0]} 1. e4 {[%emt 0:00:03]} c5 {[%emt 0:02:16]} 2. Nf3 {[%emt 0:00:19]} d6 {[%emt 0:00:33]} 3. Bb5+ {[%emt 0:00:08]} Nd7 {[%emt 0:02:06]} 4. O-O {[%emt 0:00:53]} a6 {[%emt 0:00:43]} 5. Bd3 {[%emt 0:00:43]} e6 {[%emt 0:00:23]} 6. c3 {[%emt 0:05:06] B51: Sicilian: Moscow Variation (3 Bb5+) without 3...Bd7.} Ngf6 {[%emt 0:00:23]} 7. Re1 {[%emt 0:01:48]} Be7 {[%emt 0:01:14]} 8. Bc2 {[%emt 0:01:32]} b5 {[%emt 0:00:27]} 9. d4 {[%emt 0:00:19]} Bb7 {[%emt 0:00:26]} 10. Nbd2 {[%emt 0:00:50]} cxd4 {[%emt 0:01:37]} 11. cxd4 {[%emt 0:00:40]} Rc8 {[%emt 0:00:34]} 12. Nf1 {[%emt 0:01:11]} O-O {[%emt 0:01:28]} 13. Ng3 {[%emt 0:02:32]} Re8 {[%emt 0:04:24]} 14. a4 {[%emt 0:04:13]} Bc6 $146 {[%emt 0:08:19]} ({Predecessor:} 14... Qc7 15. Bd3 Bc6 16. b3 Qb7 17. Qe2 Nf8 18. h3 Ng6 19. Bd2 Bd7 20. Reb1 Ra8 {0-1 Bologan,V (2574)-Harsha,B (2489) Wch Blitz Warsaw 2021 (16)}) 15. axb5 {[%emt 0:12:18]} axb5 {[%emt 0:00:56]} 16. Bd2 {[%emt 0:03:26]} Qb6 {[%emt 0:02:36]} 17. Bb4 {[%emt 0:08:12]} Bf8 {[%emt 0:03:40]} 18. Qd2 {[%emt 0:06:22]} Qb7 {[%emt 0:07:03]} 19. Re2 {[%emt 0:09:55]} h6 {[%emt 0:07:24]} 20. Qe1 {[%emt 0:01:52]} Nb8 {[%emt 0:02:48]} 21. Bd3 {[%emt 0:03:06]} Nfd7 {[%emt 0:10:35]} 22. Rc2 {[%emt 0:05:05]} Na6 {[%emt 0:01:27]} 23. Bd2 {[%emt 0:00:40]} Ndb8 {[%emt 0:05:59]} (23... Nf6 $11 {remains equal.}) 24. b3 {[%emt 0:03:42]} Bd7 {[%emt 0:01:28]} (24... d5 $14) 25. Rca2 $1 $16 {[%emt 0:00:14]} Qb6 {[%emt 0:06:26]} 26. Ba5 {[%emt 0:01:32]} (26. Qe2 $16) 26... Qb7 $14 {[%emt 0:00:03]} 27. Bd2 {[%emt 0:00:05]} (27. Bc3 $14) 27... Qb6 $1 $16 {[%emt 0:00:03]} 28. b4 {[%emt 0:05:01]} Nc7 {[%emt 0:05:28] [#]} 29. Qb1 {[%emt 0:02:13]} ({Better is} 29. Nh5 $1 $18) 29... Nc6 $14 {[%emt 0:00:36]} 30. Qb2 {[%emt 0:00:37]} g6 {[%emt 0:03:40]} ({Black should try} 30... Ra8 $14) 31. Ne2 {[%emt 0:00:49]} (31. Be3 $16 {[%cal Od4d5] Hoping for d5!} d5 32. Ne5) 31... Bg7 {[%emt 0:01:32] [#]} (31... Qb7 $14) 32. Be3 $1 $16 {[%emt 0:01:46]} Qb7 {[%emt 0:03:10]} 33. Qd2 {[%emt 0:00:18]} h5 {[%emt 0:00:03]} 34. Bf4 {[%emt 0:03:36]} e5 {[%emt 0:00:41]} 35. Bh6 {[%emt 0:00:04]} exd4 {[%emt 0:04:32]} ({Don't go for} 35... Nxb4 $2 36. Bxg7 Kxg7 (36... Nxa2 37. Qh6 f6 38. Bxf6 Ne6 39. Ng5) 37. Qxb4 $18) 36. Bxg7 {[%emt 0:00:14]} Kxg7 {[%emt 0:00:01]} 37. Nexd4 {[%emt 0:01:43]} Ne5 {[%emt 0:00:51]} 38. Nxe5 {[%emt 0:04:18]} dxe5 {[%emt 0:01:52]} 39. Ra7 {[%emt 0:03:47]} (39. Nf5+ $1 $14 {should be considered.} Bxf5 40. exf5) 39... Qb6 $11 {[%emt 0:00:10]} 40. Nb3 {[%emt 0:00:11]} Ra8 {[%emt 0:04:48]} 41. R7a5 {[%emt 0:38:42]} Qd6 {[%emt 0:33:50]} 42. h4 {[%emt 0:00:00]} Rxa5 {[%emt 0:00:00]} 43. Rxa5 {[%emt 0:00:00]} Rb8 {[%emt 0:00:00]} 44. Nc5 {[%emt 0:00:00]} Ne6 {[%emt 0:00:00]} 45. Ra6 {[%emt 0:00:00]} Qc7 {[%emt 0:00:00]} 46. Nxe6+ {[%emt 0:00:00]} Bxe6 {[%emt 0:00:00]} 47. Qb2 {[%emt 0:00:00]} Rd8 {[%emt 0:00:00]} 48. Bxb5 {[%emt 0:00:00]} Rd1+ {[%emt 0:00:00]} 49. Kh2 {[%emt 0:00:00]} Rd4 {[%emt 0:00:00]} 50. Bf1 {[%emt 0:02:56]} Qe7 {[%emt 0:00:00]} 51. g3 $1 {[%emt 0:00:10]} Qxb4 {[%emt 0:00:00]} 52. Qxb4 {[%emt 0:00:06]} Rxb4 {[%emt 0:00:00]} 53. Bg2 {[%emt 0:00:33]} Rb2 {[%emt 0:00:00]} 54. Kg1 {[%emt 0:00:12]} Rb1+ {[%emt 0:00:00]} 55. Kh2 {[%emt 0:00:04]} Rb2 {[%emt 0:00:00]} 1/2-1/2

[Event "Reykjavik Open 2024"]
[Site "Reykjavik"]
[Date "2024.03.18"]
[Round "6.2"]
[White "Deac, Bogdan-Daniel"]
[Black "Steingrimsson, Hedinn"]
[Result "1-0"]
[ECO "C84"]
[WhiteElo "2690"]
[BlackElo "2477"]
[Annotator "TA"]
[PlyCount "139"]
[EventDate "2024.03.12"]
[EventCountry "ISL"]
[SourceTitle "playchess.com"]
[Source "ChessBase"]
[SourceQuality "1"]
[TimeControl "40/5400+30:1800+30"]

{[%evp 58,139,144,118,122,120,125,134,128,128,117,119,131,68,71,62,66,67,97,98,110,68,83,89,122,84,87,97,96,91,107,70,59,94,66,73,123,158,150,99,157,156,459,438,367,456,376,246,405,441,476,468,454,447,447,438,365,171,646,647,1361,2410,29945,29949,29944,29950,29943,29949,29955,29953,12195,11032,29974,29975,29978,29979,29980,29981,29981,29983,29983,29984,29984,29985]} 1. e4 {[%emt 0:04:47]} e5 {[%emt 0:01:44]} 2. Nf3 {[%emt 0:00:05]} Nc6 {[%emt 0:00:01]} 3. Bb5 {[%emt 0:00:24]} a6 {[%emt 0:01:47]} 4. Ba4 {[%emt 0:00:04]} Nf6 {[%emt 0:00:05]} 5. O-O {[%emt 0:00:05]} Be7 {[%emt 0:00:21]} 6. d3 {[%emt 0:01:35]} b5 {[%emt 0:03:08]} 7. Bb3 {[%emt 0:01:29]} d6 {[%emt 0:01:19]} 8. c3 {[%emt 0:01:02]} O-O {[%emt 0:01:56]} 9. a4 {[%emt 0:00:45] 9.h3 erhält neuerdings viel Aufmerksamkeit. C84: Spanische Partie (Mittelgambit).} Rb8 {[%emt 0:12:09]} 10. axb5 {[%emt 0:21:34]} axb5 {[%emt 0:00:08]} 11. h3 {[%emt 0:02:06]} b4 {[%emt 0:07:07]} 12. Re1 {[%emt 0:06:30]} bxc3 {[%emt 0:02:18]} 13. bxc3 {[%emt 0:03:00]} Bb7 $146 {[%emt 0:13:21]} ({Predecessor:} 13... Re8 14. Be3 h6 15. Nbd2 Bf8 16. g4 Nh7 17. d4 h5 18. Ba4 Bd7 19. gxh5 exd4 20. cxd4 {1-0 Yakubboev,N (2617)-Esipenko,A (2683) Julius Baer Rapid Div 2 L 2023 (3.2)}) 14. Nbd2 {[%emt 0:02:52]} Ra8 {[%emt 0:00:02]} 15. Rb1 {[%emt 0:08:09]} Na5 {[%emt 0:03:14]} 16. Bc2 {[%emt 0:00:58]} c5 {[%emt 0:01:37]} 17. Nf1 {[%emt 0:04:59]} Qc7 {[%emt 0:10:27]} 18. Ng3 {[%emt 0:02:49]} Rfb8 {[%emt 0:02:54]} 19. Nf5 {[%emt 0:01:06]} Bf8 {[%emt 0:00:14]} 20. Bg5 {[%emt 0:01:59]} Ne8 {[%emt 0:00:55]} 21. Ne3 {[%emt 0:09:24]} Be7 {[%emt 0:07:36]} 22. Bxe7 {[%emt 0:00:35]} Qxe7 {[%emt 0:00:03]} 23. d4 {[%emt 0:01:06]} f6 {[%emt 0:06:50]} 24. Bd3 {[%emt 0:05:29]} Kh8 {[%emt 0:05:48]} 25. d5 {[%emt 0:06:24]} g6 {[%emt 0:05:23]} 26. Qe2 {[%emt 0:04:55]} Ng7 {[%emt 0:00:51]} 27. Rb5 {[%emt 0:03:30]} Bc8 {[%emt 0:02:28]} 28. Rxb8 {[%emt 0:02:10]} Rxb8 {[%emt 0:00:02]} 29. Qa2 {[%emt 0:00:29]} Qc7 {[%emt 0:02:33]} 30. Ra1 {[%emt 0:02:25]} Nb3 {[%emt 0:00:15]} 31. Rb1 {[%emt 0:00:29]} c4 {[%emt 0:00:01]} 32. Nxc4 {[%emt 0:00:39]} Nc5 {[%emt 0:00:02]} 33. Rxb8 {[%emt 0:00:40]} Qxb8 {[%emt 0:00:01]} 34. Bc2 {[%emt 0:00:07]} Ba6 {[%emt 0:01:06]} 35. Na5 {[%emt 0:01:46]} (35. Ne3 $16) 35... Nh5 $1 $14 {[%emt 0:00:59]} 36. Nd2 {[%emt 0:01:19]} Nf4 {[%emt 0:00:35]} 37. Kh2 {[%emt 0:00:31]} Nfd3 {[%emt 0:01:51]} 38. Bxd3 {[%emt 0:00:32]} Bxd3 {[%emt 0:00:14]} 39. f3 {[%emt 0:00:36]} Qa7 {[%emt 0:01:49]} 40. Qa3 {[%emt 0:00:09]} Nb7 {[%emt 0:02:44]} 41. Nac4 {[%emt 0:30:18]} Qxa3 {[%emt 0:32:00]} 42. Nxa3 {[%emt 0:00:05]} f5 {[%emt 0:00:10]} 43. Kg3 {[%emt 0:00:00]} Kg7 {[%emt 0:00:00]} 44. c4 {[%emt 0:00:00]} Kf6 {[%emt 0:00:00]} 45. exf5 {[%emt 0:06:08]} gxf5 {[%emt 0:00:00]} 46. f4 {[%emt 0:00:00]} e4 {[%emt 0:00:00]} (46... Nc5 $142) 47. Kf2 $16 {[%emt 0:00:00]} h5 {[%emt 0:00:00]} 48. g3 {[%emt 0:00:00]} ({Besser ist} 48. h4 $1) 48... Na5 {[%emt 0:00:00]} (48... Nc5 $142 49. Nb5 Ke7) 49. Ke3 $16 {[%emt 0:00:00]} h4 $2 {[%emt 0:00:00]} (49... Ke7 $16 {ist eine bessere Chance.} 50. Kd4 Nb7) 50. gxh4 $18 {[%emt 0:00:00]} Kg6 {[%emt 0:00:00]} 51. Kd4 {[%emt 0:00:00]} Kh5 {[%emt 0:00:00]} 52. Nb5 {[%emt 0:00:00]} Nb7 {[%emt 0:00:00]} 53. Ke3 $1 {[%emt 0:00:00]} Kxh4 {[%emt 0:01:28]} 54. Nd4 {[%emt 0:00:00]} Kxh3 {[%emt 0:00:10]} 55. Nxf5 {[%emt 0:00:00]} Kg4 {[%emt 0:00:08]} 56. Nh6+ {[%emt 0:00:00]} (56. Nxe4 Bxe4 (56... Kxf5 57. Kxd3 Kxf4 58. Kd4 $11) 57. Nxd6 Bxd5 $11 (57... Nxd6 58. c5 $11)) 56... Kh5 {[%emt 0:00:22]} 57. Nf7 {[%emt 0:00:00]} (57. Nxe4 Bxe4 (57... Bxc4 $2 58. Ng8 $18) 58. Kxe4 Kxh6 $11) (57. Ng8 $142) 57... Kg6 $2 {[%emt 0:00:16]} (57... Kg4 58. Ng5 (58. Nxe4 Bxc4 59. Nh6+ Kh5 $16) 58... Na5) 58. Ng5 $18 {[%emt 0:00:00]} ({Schwächer ist} 58. Nxe4 Bxe4 (58... Bxc4 59. Nfxd6 Bxd5 60. Nxb7 $11) 59. Nxd6 Nxd6 $11) 58... Na5 {[%emt 0:00:45]} 59. Ngxe4 {[%emt 0:00:00]} Bxc4 {[%emt 0:00:25]} 60. Nxc4 {[%emt 0:00:00]} ({Minderwertig wäre} 60. Nxd6 Bxd5 61. Kf2 Kf6 $11) 60... Nxc4+ {[%emt 0:00:02] [#]} 61. Kd4 $1 {[%emt 0:00:00]} Nb6 {[%emt 0:00:47]} 62. Nxd6 {[%emt 0:00:00]} Nd7 {[%emt 0:00:01]} 63. Ke4 {[%emt 0:00:00]} Nc5+ {[%emt 0:00:13]} 64. Kf3 {[%emt 0:00:00]} Na4 {[%emt 0:00:02]} 65. Ne4 {[%emt 0:05:56]} Kf5 {[%emt 0:00:57]} 66. d6 {[%emt 0:00:11]} Ke6 {[%emt 0:00:32] [#]} 67. f5+ $1 {[%emt 0:00:20]} Kd7 {[%emt 0:01:19]} 68. Ke3 {[%emt 0:01:22]} Nb6 {[%emt 0:03:16]} 69. Kd4 {[%emt 0:00:08]} Kc6 {[%emt 0:00:57]} 70. f6 {[%emt 0:00:32]} 1-0